fUSD/lending_fUSD_20240829
["ID","MTS","AMOUNT","RATE_DAILY","PERIOD"]
[336543143,1724939573550,679.68,0.00022,60]
[336543144,1724939594271,150.0,0.00010922,2]
[336543145,1724939594292,150.0,0.00010922,2]
[336543146,1724939594317,150.0,0.00010922,2]
[336543147,1724939594341,150.0,0.00010922,2]
[336543148,1724939594365,150.0,0.00010922,2]
[336543149,1724939594386,169.50202293,0.00010922,2]
[336543150,1724939594410,80.49797707,0.00010922,2]
[336543151,1724939615397,500.0,0.00010911,2]
[336543152,1724939616236,500.0,0.00010912,2]
[336543153,1724939634346,376.26,9.098e-05,2]
[336543154,1724939880763,215.96,0.00010743,2]
[336543155,1724939923649,164.24576,0.0001089,2]
[336543156,1724939971976,160.44,0.00010747,2]
[336543157,1724940004683,250.0,0.00010759,2]
[336543158,1724940136650,357.44,8.753e-05,2]
[336543159,1724940168152,1050.0,0.0001,2]
[336543160,1724940207459,1000.0,0.00010795,2]
[336543161,1724940216813,150.0,0.00010912,2]
[336543162,1724940216871,150.0,0.00010912,2]
[336543163,1724940216892,150.0,0.00010912,2]
[336543164,1724940216914,50.0,0.00010912,2]
[336543165,1724940331345,215.96,0.00010712,2]
[336543166,1724940436760,3235.0,0.00024,120]
[336543167,1724940485648,150.0,0.0001087,2]
[336543168,1724940485670,151.6885,0.0001087,2]
[336543169,1724940491394,146.20587531,0.00010779,2]
[336543170,1724940491414,150.0,0.00010779,2]
[336543171,1724940491437,5.09412469,0.00010779,2]
[336543172,1724940496113,-160.13407842,0.00011,10]
[336543175,1724940582067,150.0,0.00010774,2]
[336543176,1724940582090,47.74,0.00010774,2]
[336543182,1724940632090,-700.0,0.0001097,2]
[336543183,1724940632099,-500.0,0.0001097,2]
[336543184,1724940632109,-500.0,0.00010973,2]
[336543185,1724940632118,-500.0,0.00010973,2]
[336543186,1724940632129,-150.61,0.0001099,2]
[336543187,1724940632138,-150.61,0.0001099,2]
[336543188,1724940632148,-1332.4563849,0.00010998,2]
[336543189,1724940632158,-467.6532274,0.00010998,2]
[336543190,1724940632167,-4396.35329407,0.00010998,2]
[336543191,1724940632179,-766.91773157,0.00010998,2]
[336543192,1724940632190,-1500.0,0.00010998,2]
[336543193,1724940632202,-701.88550612,0.00010998,2]
[336543194,1724940632213,-1476.78718249,0.00010998,2]
[336543195,1724940632228,-608.17,0.00010998,2]
[336543196,1724940632248,-1012.2128544,0.00010998,2]
[336543197,1724940632259,-3118.66555,0.00010998,2]
[336543198,1724940638317,-456.20914416,0.00010998,2]
[336543199,1724940638472,-2212.79,0.00010998,2]
[336543202,1724940638492,-1545.94555992,0.00010998,2]
[336543203,1724940638504,-874.57158723,0.00010998,2]
[336543204,1724940638512,-290.69215906,0.00010999,2]
[336543205,1724940638525,-903.29718134,0.00010999,2]
[336543206,1724940638535,-921.69281866,0.00011,2]
[336543347,1724940640138,-6589.04166126,0.00011,2]
[336543349,1724940640150,-834.30484756,0.00011,2]
[336543352,1724940640167,-533.81505828,0.00011,2]
[336543366,1724940644650,-200.0,0.00010973,2]
[336543367,1724940644659,-24005.83680241,0.00011,2]
[336543368,1724940644668,-29358.06718134,0.00011,2]
[336543369,1724940644677,-133336.09601625,0.00011,2]
[336543370,1724940644701,-18252.01703645,0.00011,2]
[336543371,1724940644712,-11547.09213695,0.00011,2]
[336543372,1724940644742,-822416.07903748,0.00011,2]
[336543373,1724940644754,-15916.02020858,0.00011,2]
[336543374,1724940644765,-30439.23488987,0.00011,2]
[336543375,1724940644780,-984.18406731,0.00011,2]
[336543381,1724940646363,-186900.0,0.00011,2]
[336543382,1724940646375,-3047.98982192,0.00011,2]
[336543383,1724940651747,150.0,0.000109,2]
[336543384,1724940651768,150.0,0.000109,2]
[336543385,1724940651790,250.62,0.000109,2]
[336543386,1724940651815,449.38,0.000109,2]
[336543387,1724940681990,150.0,0.000109,2]
[336543388,1724940682013,150.0,0.000109,2]
[336543389,1724940682034,70.04907418,0.000109,2]
[336543390,1724940688718,150.0,0.0001087,2]
[336543391,1724940688739,150.0,0.0001087,2]
[336543392,1724940688760,150.0,0.0001087,2]
[336543393,1724940688781,150.0,0.0001087,2]
[336543394,1724940688801,150.0,0.0001087,2]
[336543395,1724940688821,296.36617496,0.0001087,2]
[336543396,1724940688846,299.76052504,0.0001087,2]
[336543397,1724940699151,1227.82972672,0.000109,2]
[336543398,1724940713292,566.7633,0.000109,2]
[336543399,1724940713453,6498.0575,0.000109,2]
[336543400,1724940719306,200.0,0.00010958,2]
[336543401,1724940721867,4241.171,0.000109,2]
[336543402,1724940770508,370.47,8.948e-05,2]
[336543403,1724940774431,171.465429,0.00022,60]
[336543404,1724940812230,2087.3055,0.000109,2]
[336543406,1724940843770,150.0,0.00010671,2]
[336543407,1724941009729,260.11,0.00010758,2]
[336543408,1724941062752,100018.26545614,0.0001096,2]
[336543409,1724941065078,723.5389,0.00010899,2]
[336543410,1724941082162,928.25036028,0.000109,2]
[336543411,1724941107890,448.36,0.00010825,2]
[336543412,1724941126565,250.0,0.00010688,2]
[336543413,1724941141008,227.23,0.00010954,2]
[336543414,1724941220855,618.83357352,0.000109,2]
[336543415,1724941230791,560.2683,0.00010899,2]
[336543416,1724941242364,840.0,0.00010714,2]
[336543417,1724941307717,351.94,8.677e-05,2]
[336543418,1724941307931,351.94,0.00010941,2]
[336543419,1724941356760,412.55571568,0.000109,2]
[336543420,1724941373102,154.318887,0.00022,60]
[336543421,1724941379929,449.79,0.00010959,2]
[336543422,1724941391372,795.0,0.0001096,2]
[336543423,1724941402471,213.38983,0.0001089,2]
[336543424,1724941412720,795.0,0.0001096,2]
[336543425,1724941433982,795.0,0.0001096,2]
[336543426,1724941455555,795.0,0.0001096,2]
[336543427,1724941466417,410.1,0.00010581,2]
[336543428,1724941479888,795.0,0.0001096,2]
[336543429,1724941496572,275.03714378,0.000109,2]
[336543430,1724941501227,795.0,0.0001096,2]
[336543431,1724941522540,795.0,0.0001096,2]
[336543432,1724941544077,795.0,0.0001096,2]
[336543433,1724941565451,795.0,0.0001096,2]
[336543436,1724941635578,183.35809586,0.000109,2]
[336543437,1724941680849,250.0,0.00010591,2]
[336543438,1724941689618,260.11,0.00010583,2]
[336543439,1724941724384,1276.0146638,0.000115,30]
[336543440,1724941741670,218.21,0.00010643,2]
[336543441,1724941745786,167.34408375,0.00010899,2]
[336543447,1724941765815,328.0,0.00010623,2]
[336543467,1724941832285,-795.0,0.0001098,2]
[336543468,1724941832295,-300.0,0.00010985,2]
[336543469,1724941832304,-5341.83739313,0.00010986,2]
[336543470,1724941832318,-2084.775,0.00010986,2]
[336543471,1724941832335,-1425.76150624,0.00010986,2]
[336543472,1724941832347,-1133.16129937,0.00010986,2]
[336543473,1724941832363,-1243.00176,0.00010986,2]
[336543474,1724941832427,-849.36959246,0.00010986,2]
[336543475,1724941832439,-1451.24090158,0.00010986,2]
[336543476,1724941832450,-67278.85254722,0.00010986,2]
[336543477,1724941832460,-150.63,0.00010989,2]
[336543478,1724941832470,-150.63,0.0001099,2]
[336543479,1724941832480,-187.65688006,0.00010996,2]
[336543480,1724941832489,-7515.99352167,0.00010999,2]
[336543482,1724941832498,-195.62232328,0.00010999,2]
[336543483,1724941832509,-1957.9014692,0.00010999,2]
[336543484,1724941832519,-214523.87501636,0.00010999,2]
[336543485,1724941832534,-1096.15742292,0.00010999,2]
[336543490,1724941838526,-1500.0,0.00010999,2]
[336543491,1724941838539,-683.52597038,0.00010999,2]
[336543492,1724941838555,-67067.51055919,0.00010999,2]
[336543493,1724941838570,-255.53745705,0.00010999,2]
[336543494,1724941838583,-2413.98719395,0.00010999,2]
[336543495,1724941838598,-310.1238424,0.00010999,2]
[336543496,1724941838637,-2811.09608761,0.00010999,2]
[336543506,1724941838779,-1458.4,0.00010999,2]
[336543634,1724941840298,-622.22,0.00010999,2]
[336543638,1724941840327,-1109.35018542,0.00010999,2]
[336543649,1724941840447,-6236.70000001,0.00010999,2]
[336543686,1724941840811,-2134.66288306,0.00010999,2]
[336543694,1724941840891,-3174.304955,0.00010999,2]
[336543952,1724941843377,-52035.14423736,0.00010999,2]
[336543956,1724941843409,-787.0,0.00010999,2]
[336543958,1724941843421,-6335.31252348,0.00010999,2]
[336543997,1724941845401,-2180.37715403,0.00010999,2]
[336543998,1724941845440,-548540.99999962,0.00010999,2]
[336544011,1724941846637,-16122.65853712,0.00010999,2]
[336544013,1724941846649,-2586.53149642,0.00010999,2]
[336544015,1724941846661,-264.56933083,0.00010999,2]
[336544018,1724941846683,-607.0,0.00010999,2]
[336544025,1724941846732,-390.67842279,0.00010999,2]
[336544027,1724941846749,-261.0463968,0.00010999,2]
[336544029,1724941846760,-4564.31085574,0.00010999,2]
[336544033,1724941846789,-6220.78145138,0.00010999,2]
[336544035,1724941846800,-6215.209,0.00010999,2]
[336544037,1724941846812,-2600.0,0.00010999,2]
[336544039,1724941846823,-302.0,0.00010999,2]
[336544042,1724941846835,-4545.31242003,0.00010999,2]
[336544044,1724941846845,-1206.09817827,0.00010999,2]
[336544059,1724941846990,2000.0,0.00022,60]
[336544128,1724941873707,335.67,8.879e-05,2]
[336544129,1724941877841,150.0,0.00010889,2]
[336544130,1724941888221,204.39729,0.00010889,2]
[336544131,1724941909215,3164.8881,0.0001088,2]
[336544132,1724941912489,500.0,0.00010899,2]
[336544133,1724941915574,156.4355,0.00010899,2]
[336544134,1724941921397,1000.0,0.00010899,2]
[336544135,1724941944540,35937.586,0.00010899,2]
[336544136,1724941967186,7864.71,0.00010899,2]
[336544137,1724941971042,1050.0,0.0001,2]
[336544138,1724941973311,154.318887,0.00022,60]
[336544139,1724941981449,729.6551,0.00010899,2]
[336544140,1724941983171,270.0311,0.00010899,2]
[336544141,1724942004594,3235.2613,0.00010899,2]
[336544142,1724942011180,4370.0,0.0001089,2]
[336544143,1724942022657,4421.4866,0.00010899,2]
[336544144,1724942032629,3888.8824,0.00010899,2]
[336544145,1724942042757,454.1136,0.00010899,2]
[336544146,1724942048592,330.01062212,0.00010899,2]
[336544147,1724942070522,201.407,0.00010899,2]
[336544148,1724942086814,-150.0,0.00010998,2]
[336544149,1724942086839,-151.39,0.00010999,2]
[336544150,1724942086863,-3694.58,0.00010999,2]
[336544151,1724942086887,-3710.4,0.00010999,2]
[336544152,1724942086911,-42293.63,0.00010999,2]
[336544153,1724942113312,3329.8603,0.00010899,2]
[336544154,1724942139000,2215.7832,0.00010899,2]
[336544155,1724942143059,500.0,0.0001,2]
[336544156,1724942162151,250.0,0.00010713,2]
[336544157,1724942175963,330.01062211,0.00010899,2]
[336544158,1724942194172,500.0,8.22e-05,2]
[336544159,1724942196215,500.0,0.0001096,2]
[336544160,1724942221821,218.24,0.0001057,2]
[336544161,1724942236510,777.58832902,0.000109,2]
[336544162,1724942244321,737.6,0.00010486,2]
[336544163,1724942260688,23834.4509,0.00010899,2]
[336544164,1724942270112,177.82486,0.0001089,2]
[336544165,1724942271678,1263.1381,0.00010899,2]
[336544166,1724942276772,155.0,0.00010899,2]
[336544167,1724942294579,330.01062211,0.00010899,2]
[336544168,1724942388311,188.0,0.00024,120]
[336544169,1724942390361,337.0,8.561e-05,2]
[336544170,1724942390973,337.0,0.00010825,2]
[336544171,1724942443581,299.78,0.00022,60]
[336544172,1724942596209,500.0,8.22e-05,2]
[336544173,1724942597414,500.0,9.59e-05,2]
[336544174,1724942611392,500.0,0.00010912,2]
[336544175,1724942696925,250.0,0.00010513,2]
[336544176,1724942713055,150.0,0.00010959,2]
[336544177,1724942821906,2898.24649925,0.0001089,2]
[336544178,1724942831373,409.92,0.00010527,2]
[336544179,1724942848672,225.43,0.00010561,2]
[336544180,1724942932380,321.02,8.752e-05,2]
[336544184,1724942966655,500.0,8.22e-05,2]
[336544185,1724942967917,500.0,8.22e-05,2]
[336544186,1724942968226,500.0,0.0001096,2]
[336544187,1724942969426,500.0,0.0001096,2]
[336544188,1724942986491,7592.21167414,0.00010878,2]
[336544189,1724942991543,7592.21167412,0.00010884,2]
[336544190,1724942997003,7592.21167412,0.00010889,2]
[336544191,1724943001320,186.29187249,0.000109,2]
[336544192,1724943017968,2482.9765,0.00010899,2]
[336544213,1724943031521,-168.0,0.00010978,2]
[336544214,1724943031531,-2754.27778717,0.00010978,2]
[336544215,1724943031540,-160.8995,0.00010989,2]
[336544216,1724943031549,-150.63,0.00010989,2]
[336544217,1724943031558,-300.0,0.00010997,2]
[336544218,1724943031568,-150.0,0.00010998,2]
[336544219,1724943031578,-388.07971391,0.00010998,2]
[336544220,1724943031587,-7125.38326011,0.00010998,2]
[336544221,1724943031597,-3751.79,0.00010999,2]
[336544222,1724943031607,-35913.22006829,0.00010999,2]
[336544223,1724943031648,-3104.6015,0.00010999,2]
[336544236,1724943037477,-6195.0,0.00010999,2]
[336544237,1724943037488,-2077.28633765,0.00010999,2]
[336544238,1724943037613,-175917.08855216,0.00010999,2]
[336544239,1724943037626,-5162.99999999,0.00010999,2]
[336544240,1724943037639,-62000.0,0.00010999,2]
[336544242,1724943037802,-19979.20601758,0.00010999,2]
[336544243,1724943037895,-620.87372107,0.00010999,2]
[336544250,1724943039540,-300.0,0.00010999,2]
[336544251,1724943039708,-1513.43703602,0.00010999,2]
[336544252,1724943039720,-401.09288415,0.00010999,2]
[336544253,1724943039731,-4711.02005604,0.00010999,2]
[336544254,1724943039745,-1219.82477916,0.00010999,2]
[336544255,1724943039757,-519.45,0.00010999,2]
[336544258,1724943039854,-1789.08360229,0.00010999,2]
[336544329,1724943045237,-372.21452412,0.00010999,2]
[336544330,1724943045249,-81621.83303719,0.00010999,2]
[336544339,1724943045428,-20464.29,0.00010999,2]
[336544341,1724943045440,-12679.99999942,0.00010999,2]
[336544344,1724943045452,-6921.58711547,0.00010999,2]
[336544359,1724943045782,3362.9063,0.00010899,2]
[336544361,1724943046484,-3740.16,0.00010999,2]
[336544362,1724943046494,-2044.68070337,0.00010999,2]
[336544363,1724943046505,-12213.40479688,0.00010999,2]
[336544364,1724943046517,-30506.15994046,0.00010999,2]
[336544365,1724943046546,-1874.06416438,0.00010999,2]
[336544366,1724943046557,-33213.37472057,0.00010999,2]
[336544367,1724943046567,-2588.96951999,0.00010999,2]
[336544368,1724943046626,-812.74759037,0.00010999,2]
[336544369,1724943089991,1323.17583517,0.00010825,2]
[336544370,1724943123821,7244.6679,0.00010878,2]
[336544371,1724943135931,1000.0,0.00010899,2]
[336544372,1724943144638,500.0,0.0001089,2]
[336544373,1724943144891,500.0,0.0001089,2]
[336544374,1724943145096,500.0,0.0001089,2]
[336544375,1724943145708,500.0,0.0001089,2]
[336544376,1724943145901,500.0,0.0001089,2]
[336544377,1724943146177,500.0,0.0001089,2]
[336544378,1724943146206,1592.54,0.00010658,2]
[336544379,1724943147091,500.0,0.0001089,2]
[336544380,1724943147992,500.0,0.0001089,2]
[336544381,1724943148391,500.0,0.0001089,2]
[336544382,1724943148712,500.0,0.0001089,2]
[336544383,1724943149079,598.0,0.0001089,2]
[336544384,1724943170844,26822.1131,0.00010899,2]
[336544385,1724943170882,1000.0,0.00010605,2]
[336544386,1724943187798,25836.1268,0.000109,2]
[336544387,1724943196263,7417.45,0.00010535,2]
[336544388,1724943215007,500.0,0.00010912,2]
[336544389,1724943234724,-300.0,0.00010998,2]
[336544390,1724943234748,-4300.0,0.00010999,2]
[336544391,1724943296436,255.02,0.00010568,2]
[336544392,1724943315634,672.06,0.00010576,2]
[336544393,1724943350839,595.55546677,0.00010899,2]
[336544394,1724943421705,192.24,0.00010944,2]
[336544395,1724943434960,550.11394,0.0001089,2]
[336544396,1724943460166,250.0,0.00010561,2]
[336544397,1724943460608,500.0,0.0001089,2]
[336544398,1724943460655,219.65,0.00010561,2]
[336544399,1724943460834,500.0,0.0001089,2]
[336544400,1724943462060,500.0,0.0001089,2]
[336544401,1724943462167,624.0,0.0001089,2]
[336544402,1724943518452,340.65,8.574e-05,2]
[336544403,1724943518740,340.65,0.00010838,2]
[336544404,1724943525364,325.520945,0.00010935,2]
[336544405,1724943549844,232.76,0.00010492,2]
[336544407,1724943773051,150.0,0.0001,2]
[336544408,1724943773074,150.0,0.0001,2]
[336544409,1724943773098,150.0,0.0001,2]
[336544410,1724943773122,150.0,0.0001,2]
[336544411,1724943773143,150.0,0.0001,2]
[336544412,1724943773163,150.0,0.0001,2]
[336544413,1724943773183,150.0,0.0001,2]
[336544414,1724943816915,150.0,9.92e-05,2]
[336544415,1724943816936,150.0,9.92e-05,2]
[336544416,1724943816957,150.0,9.92e-05,2]
[336544417,1724943816977,50.0,9.92e-05,2]
[336544418,1724943826363,150.0,0.0001089,2]
[336544419,1724943826384,150.0,0.0001089,2]
[336544420,1724943826404,150.0,0.0001089,2]
[336544421,1724943826425,8.42829,0.0001089,2]
[336544422,1724943845292,150.0,0.00010382,2]
[336544423,1724943845314,150.0,0.00010382,2]
[336544424,1724943845335,150.0,0.00010382,2]
[336544425,1724943845362,12.35,0.00010382,2]
[336544426,1724943875215,600.0,0.00010646,2]
[336544427,1724943877195,150.0,0.00010476,2]
[336544428,1724943877215,150.0,0.00010476,2]
[336544429,1724943877236,150.0,0.00010476,2]
[336544430,1724943877259,150.0,0.00010476,2]
[336544431,1724943877792,150.0,0.0001067,2]
[336544432,1724943877813,150.0,0.0001067,2]
[336544433,1724943877835,150.0,0.0001067,2]
[336544434,1724943877856,150.0,0.0001067,2]
[336544435,1724943878824,150.0,0.0001067,2]
[336544436,1724943878846,150.0,0.0001067,2]
[336544437,1724943878867,150.0,0.0001067,2]
[336544438,1724943878888,150.0,0.0001067,2]
[336544439,1724943879337,150.0,0.0001067,2]
[336544440,1724943879359,150.0,0.0001067,2]
[336544441,1724943879380,250.23571106,0.0001067,2]
[336544442,1724943879403,49.76428894,0.0001067,2]
[336544443,1724943879939,600.0,0.0001067,2]
[336544444,1724943880636,600.0,0.0001067,2]
[336544445,1724943881393,600.0,0.0001067,2]
[336544446,1724943883749,150.0,0.0001067,2]
[336544447,1724943883768,150.0,0.0001067,2]
[336544448,1724943883788,150.0,0.0001067,2]
[336544449,1724943883808,150.0,0.0001067,2]
[336544450,1724943883828,11.36709111,0.0001067,2]
[336544451,1724943891576,161.42524914,0.00010899,2]
[336544452,1724943901061,176.11046373,0.00010935,2]
[336544453,1724943904095,-500.0,0.00010973,2]
[336544454,1724943943323,-500.0,0.00010973,2]
[336544455,1724943945177,150.0,0.0001089,2]
[336544456,1724943954710,150.0,0.00010449,2]
[336544457,1724943954731,150.0,0.00010449,2]
[336544458,1724943954752,129.26568358,0.00010449,2]
[336544459,1724943954784,20.73431642,0.00010258,2]
[336544460,1724943954805,150.0,0.00010258,2]
[336544461,1724943954826,79.26568358,0.00010258,2]
[336544462,1724943962126,150.0,0.0001089,2]
[336544463,1724943962148,150.0,0.0001089,2]
[336544464,1724943962170,133.2501,0.0001089,2]
[336544465,1724943966502,153.2,0.00010258,2]
[336544466,1724943981327,150.0,0.000109,2]
[336544467,1724943981349,150.0,0.000109,2]
[336544468,1724943981371,150.0,0.000109,2]
[336544469,1724943981393,150.0,0.000109,2]
[336544470,1724943981416,150.0,0.000109,2]
[336544471,1724943981438,150.0,0.000109,2]
[336544472,1724943981460,150.0,0.000109,2]
[336544473,1724943981481,150.0,0.000109,2]
[336544474,1724943981503,150.0,0.000109,2]
[336544475,1724943981524,150.0,0.000109,2]
[336544476,1724943981546,150.0,0.000109,2]
[336544477,1724943981568,150.0,0.000109,2]
[336544478,1724943981589,150.0,0.000109,2]
[336544479,1724943981611,255.32643074,0.000109,2]
[336544480,1724943981636,5294.67356926,0.000109,2]
[336544481,1724943989500,330.0106221,0.000109,2]
[336544484,1724944045395,154.63,0.00010238,2]
[336544487,1724944073584,157.97,0.00010959,2]
[336544488,1724944090685,150.0,0.000106,3]
[336544489,1724944090708,50.0,0.000106,3]
[336544490,1724944092826,101.6885,0.000107,3]
[336544491,1724944092850,398.3115,0.000107,3]
[336544492,1724944095444,700.0,0.000108,3]
[336544493,1724944097051,291.91849988,0.000109,3]
[336544494,1724944097078,708.08150012,0.000109,3]
[336544495,1724944104638,1000.0,0.00010896,2]
[336544496,1724944107037,219.68,0.00010235,2]
[336544497,1724944122757,3673.30152107,0.0001089,2]
[336544498,1724944126073,150.0,0.00010237,2]
[336544499,1724944141386,301.6885,0.00010889,2]
[336544501,1724944165800,2500.0,0.00010896,2]
[336544502,1724944197464,197.74,0.00010282,2]
[336544503,1724944197488,52.26,0.00010282,2]
[336544504,1724944198883,198.18738,0.0001089,2]
[336544505,1724944211709,210.0,0.00010899,2]
[336544510,1724944231592,-150.0,0.00010989,2]
[336544511,1724944231602,-253.63552425,0.00010989,2]
[336544512,1724944231645,-746.36447575,0.00010989,2]
[336544513,1724944231654,-7808.7701015,0.0001099,2]
[336544514,1724944231666,-4819.72288881,0.0001099,2]
[336544515,1724944231784,-306.150118,0.0001099,2]
[336544516,1724944231796,-915.731106,0.0001099,2]
[336544517,1724944231824,-438.58020339,0.0001099,2]
[336544523,1724944237960,-2538.4574776,0.0001099,2]
[336544524,1724944237972,-994.05234291,0.0001099,2]
[336544534,1724944238759,-174654.18641166,0.0001099,2]
[336544535,1724944238768,-150.63,0.0001099,2]
[336544536,1724944238778,-2212.79,0.00010996,2]
[336544537,1724944238788,-2106.928484,0.00010996,2]
[336544538,1724944238797,-154.5811072,0.00010996,2]
[336544539,1724944238807,-12015.722657,0.00010996,2]
[336544540,1724944238816,-567.2204555,0.00010996,2]
[336544541,1724944238826,-4077.5186118,0.00010996,2]
[336544542,1724944238835,-918.9805928,0.00010996,2]
[336544543,1724944238844,-5850.0,0.00010997,2]
[336544544,1724944238854,-13458.0,0.00010997,2]
[336544545,1724944238869,-1078.0,0.00010997,2]
[336544546,1724944238879,-263.9469012,0.00010997,2]
[336544547,1724944238889,-3809.99,0.00010999,2]
[336544548,1724944238899,-6355.63761495,0.00010999,2]
[336544549,1724944238908,-195.62232327,0.00010999,2]
[336544550,1724944238918,-239.1380164,0.00010999,2]
[336544551,1724944238928,-1194.04088155,0.00010999,3]
[336544552,1724944238949,-2000.0,0.00010999,2]
[336544553,1724944238967,-200.0,0.00010999,2]
[336544554,1724944238983,-2000.0,0.00010999,2]
[336544555,1724944239000,-774.52104434,0.00011,10]
[336544556,1724944239018,-150.99,0.00011,2]
[336544557,1724944239036,-6363.09,0.00011,2]
[336544558,1724944239051,-499.99,0.00011,2]
[336544559,1724944239066,-20593.64,0.00011,2]
[336544560,1724944239083,-4506.43,0.00011,2]
[336544561,1724944239099,-36066.84,0.00011,2]
[336544562,1724944239112,-459.12,0.00011,2]
[336544563,1724944239130,-499.99,0.00011,2]
[336544564,1724944239145,-150.99,0.00011,2]
[336544565,1724944239163,-358.32,0.00011,2]
[336544566,1724944239178,-246096.07120339,0.00011,2]
[336544574,1724944239894,-82986.44031648,0.00011,2]
[336544575,1724944239939,-23.29301601,0.00011,2]
[336544576,1724944239966,-22194.97216554,0.00011,2]
[336544597,1724944240571,-375.495108,0.00011,2]
[336544598,1724944240610,-0.4495712,0.00011,2]
[336544599,1724944240627,-293.16749004,0.00011,2]
[336544600,1724944240693,-950.90019971,0.00011,2]
[336544601,1724944240709,-501.04428,0.00011,2]
[336544602,1724944240739,-869.59654346,0.00011,2]
[336544618,1724944244364,-477.25714,0.00010999,2]
[336544619,1724944244375,-2986.0756792,0.00011,2]
[336544620,1724944244387,-53607.57738911,0.00011,2]
[336544621,1724944244399,-619.87894017,0.00011,2]
[336544622,1724944244433,-16511.19999,0.00011,2]
[336544626,1724944245658,-13024.49221089,0.00011,2]
[336544627,1724944245802,-6221.57328,0.00011,2]
[336544628,1724944245834,-460.76546657,0.00011,2]
[336544629,1724944245846,-62132.424,0.00011,2]
[336544630,1724944245858,-3224.5297152,0.00011,2]
[336544631,1724944245883,-41585.00000015,0.00011,2]
[336544632,1724944245897,-31086.5,0.00011,2]
[336544633,1724944265564,150.0,0.00010452,2]
[336544634,1724944265585,150.0,0.00010452,2]
[336544635,1724944265607,250.62,0.00010452,2]
[336544636,1724944265632,17.72,0.00010452,2]
[336544637,1724944268476,7519.68350408,0.0001,2]
[336544638,1724944272616,170.8560502,0.000109,2]
[336544639,1724944301038,550.62,0.00010896,2]
[336544640,1724944305144,372.41,8.534e-05,2]
[336544641,1724944305371,372.41,0.00010798,2]
[336544642,1724944331088,5000.0,0.0001,2]
[336544644,1724944357184,150.0,0.0001088,2]
[336544645,1724944357232,150.0,0.00010841,2]
[336544646,1724944365096,150.0,0.00010938,2]
[336544647,1724944383892,197.74,0.00010473,2]
[336544648,1724944412628,630.12,0.00010422,2]
[336544649,1724944421349,330.0106221,0.000109,2]
[336544650,1724944424408,1500.0,0.00010959,2]
[336544651,1724944532978,2494.95990756,0.000109,2]
[336544652,1724944542177,330.0106221,0.000109,2]
[336544653,1724944553570,625.90099195,0.00010896,2]
[336544654,1724944582008,427.3,0.00010959,2]
[336544655,1724944590681,589.6124,0.0001089,2]
[336544656,1724944614356,250.0,0.00010348,2]
[336544657,1724944687624,224.28,0.00010363,2]
[336544658,1724944761534,250.0,0.00010438,2]
[336544659,1724944798438,3570.412496,0.00010896,2]
[336544660,1724944798802,192.25,0.0001095,2]